lending/lending_fUSD_20260310
["ID","MTS","AMOUNT","RATE_DAILY","PERIOD"]
[408077766,1773114639700,-254.12738969,0.00017528,2]
[408077767,1773114639718,-333.26194966,0.00017528,2]
[408077768,1773114639742,-265.96,0.00017528,2]
[408077769,1773114639754,-506.37642362,0.00017528,2]
[408077771,1773114642798,-4854.26755109,0.00017528,2]
[408077772,1773114642853,-937380.98764803,0.00017528,2]
[408077773,1773114642864,-382.07108,0.00017528,2]
[408077774,1773114642875,-539.44516753,0.00017528,2]
[408077780,1773114644273,-265.1286,0.00017528,2]
[408077788,1773114645458,-176252.48985989,0.00017528,2]
[408077789,1773114645469,-34239.93071931,0.00017528,2]
[408077790,1773114645479,-487.0,0.00017528,2]
[408077791,1773114645488,-487.0,0.00017528,2]
[408077792,1773114645498,-487.0,0.00017528,2]
[408077793,1773114645509,-487.0,0.00017528,2]
[408077794,1773114645519,-487.0,0.00017528,2]
[408077795,1773114645528,-487.0,0.00017528,2]
[408077796,1773114645537,-487.0,0.00017528,2]
[408077797,1773114645549,-487.0,0.00017528,2]
[408077798,1773114645558,-725.78,0.00017528,2]
[408077799,1773114645567,-161.86139248,0.00017573,2]
[408077800,1773114645576,-508.91575534,0.00017573,2]
[408077801,1773114645587,-500.0,0.00017573,2]
[408077802,1773114645596,-500.0,0.00017573,2]
[408077803,1773114645606,-500.0,0.00017573,2]
[408077804,1773114645616,-500.0,0.00017573,2]
[408077805,1773114645626,-3634.78,0.00017603,2]
[408077806,1773114645637,-500.0,0.00017627,2]
[408077807,1773114645648,-500.0,0.00017627,2]
[408077808,1773114645658,-500.0,0.00017627,2]
[408077809,1773114645668,-1210.78,0.00017627,2]
[408077811,1773114645679,-500.0,0.00017627,8]
[408077812,1773114645687,-500.0,0.00017627,2]
[408077813,1773114645696,-5141.15420675,0.00017699,2]
[408077814,1773114645705,-1759.89391002,0.00017699,2]
[408077815,1773114645715,-200.0,0.000177,6]
[408077816,1773114645724,-246.90447543,0.00017777,2]
[408077818,1773114645734,-500.0,0.000178,6]
[408077819,1773114645757,-504.81219499,0.00017801,2]
[408077820,1773114645776,-150.0,0.00017852,2]
[408077821,1773114645787,-800.0,0.000179,6]
[408077822,1773114645798,-166.66,0.00017958,2]
[408077823,1773114645807,-5141.15420675,0.00017971,2]
[408077824,1773114645817,-1759.89391002,0.00017971,2]
[408077825,1773114645827,-3634.78,0.00018032,2]
[408077826,1773114645836,-202.30694051,0.00018065,2]
[408077828,1773114645846,-1004.49205814,0.00018121,2]
[408077830,1773114645855,-505.78610807,0.00018121,2]
[408077831,1773114645867,-500.28250198,0.00018121,2]
[408077832,1773114645876,-246.90447543,0.00018126,2]
[408077833,1773114645885,-5141.15420675,0.00018242,2]
[408077834,1773114645894,-1759.89391002,0.00018242,2]
[408077835,1773114645905,-1600.0,0.00018322,2]
[408077836,1773114645917,-500.0,0.00018356,7]
[408077837,1773114645928,-600.0,0.00018356,7]
[408077838,1773114645939,-500.0,0.00018356,7]
[408077839,1773114645948,-609.73090972,0.00018414,2]
[408077840,1773114645963,-3634.78,0.00018462,2]
[408077841,1773114645976,-246.90447543,0.00018475,2]
[408077842,1773114645986,-150.0,0.00018513,2]
[408077843,1773114645994,-5141.15420675,0.00018514,2]
[408077844,1773114646004,-1759.89391002,0.00018514,2]
[408077845,1773114646013,-166.66,0.00018514,2]
[408077846,1773114646023,-3240.0,0.00018564,2]
[408077847,1773114646032,-420.0,0.00018567,2]
[408077848,1773114646042,-314.68940622,0.0001865,2]
[408077849,1773114646052,-609.73090971,0.00018706,2]
[408077850,1773114646064,-1588.85,0.00018707,2]
[408077851,1773114646075,-152.0,0.0001871,3]
[408077852,1773114646084,-2000.0,0.0001874,2]
[408077853,1773114646094,-5141.15420675,0.00018785,2]
[408077854,1773114646104,-1759.89391002,0.00018785,2]
[408077855,1773114646114,-500.0,0.00018823,2]
[408077856,1773114646128,-500.0,0.00018823,2]
[408077857,1773114646141,-1419.54,0.00018824,2]
[408077858,1773114646151,-246.90447543,0.00018825,2]
[408077859,1773114646160,-1931.30566739,0.00018869,2]
[408077860,1773114646170,-250.0,0.00018869,2]
[408077861,1773114646179,-695.39793187,0.00018869,2]
[408077862,1773114646190,-1377.42282659,0.00018869,2]
[408077863,1773114646199,-250.0,0.00018869,2]
[408077864,1773114646209,-250.0,0.00018869,2]
[408077865,1773114646218,-151.500711,0.00018869,2]
[408077866,1773114646229,-250.0,0.00018869,2]
[408077867,1773114646239,-250.0,0.00018869,2]
[408077868,1773114646250,-500.0,0.00018869,2]
[408077869,1773114646259,-250.0,0.00018869,2]
[408077870,1773114646269,-1500.0,0.00018869,2]
[408077871,1773114646278,-500.0,0.00018869,2]
[408077872,1773114646287,-250.0,0.00018869,2]
[408077873,1773114646297,-754.0050979,0.00018869,2]
[408077874,1773114646307,-500.0,0.00018869,2]
[408077875,1773114646318,-250.0,0.00018869,2]
[408077876,1773114646327,-500.0,0.00018869,2]
[408077877,1773114646337,-250.0,0.00018869,2]
[408077878,1773114646347,-500.0,0.00018869,2]
[408077879,1773114646356,-250.0,0.00018869,2]
[408077880,1773114646366,-450.49424599,0.00018869,2]
[408077881,1773114646380,-1000.0,0.00018869,2]
[408077882,1773114646389,-256.39759143,0.00018869,2]
[408077883,1773114646399,-3000.0,0.00018869,2]
[408077884,1773114646412,-3000.0,0.00018869,2]
[408077885,1773114646422,-3000.0,0.00018869,2]
[408077886,1773114646431,-156.04278427,0.00018869,2]
[408077887,1773114646440,-250.0,0.00018869,2]
[408077888,1773114646449,-578.20924308,0.00018869,2]
[408077889,1773114646459,-250.0,0.00018869,2]
[408077890,1773114646468,-250.0,0.00018869,2]
[408077891,1773114646477,-250.0,0.00018869,2]
[408077892,1773114646487,-250.0,0.00018869,2]
[408077893,1773114646496,-250.0,0.00018869,2]
[408077894,1773114646509,-250.0,0.00018869,2]
[408077895,1773114646519,-250.0,0.00018869,2]
[408077896,1773114646529,-250.0,0.00018869,2]
[408077897,1773114646538,-151.0,0.00018869,2]
[408077898,1773114646549,-250.0,0.00018869,2]
[408077899,1773114646558,-256.00624791,0.00018869,2]
[408077900,1773114646567,-1500.0,0.00018869,2]
[408077901,1773114646576,-1500.0,0.00018869,2]
[408077902,1773114646587,-1000.0,0.00018869,2]
[408077903,1773114646596,-1500.0,0.00018869,2]
[408077904,1773114646605,-773.73733787,0.00018869,2]
[408077905,1773114646614,-1500.0,0.00018869,2]
[408077906,1773114646623,-9207.20483851,0.00018869,2]
[408077907,1773114646632,-1500.0,0.00018869,2]
[408077908,1773114646641,-1500.0,0.00018869,2]
[408077909,1773114646650,-174.61919141,0.00018869,2]
[408077910,1773114646659,-1500.0,0.00018869,2]
[408077911,1773114646668,-716.46661359,0.00018869,2]
[408077912,1773114646677,-743.50770149,0.00018869,2]
[408077913,1773114646686,-200.0,0.00018869,2]
[408077914,1773114646695,-500.0,0.00018869,2]
[408077915,1773114646704,-266.11523531,0.00018869,2]
[408077916,1773114646713,-668.65185757,0.00018869,2]
[408077917,1773114646722,-1500.0,0.00018869,2]
[408077918,1773114646731,-1500.0,0.00018869,2]
[408077919,1773114646741,-1500.0,0.00018869,2]
[408077920,1773114646751,-1000.0,0.00018869,2]
[408077921,1773114646760,-262.90206542,0.00018869,2]
[408077922,1773114646769,-9728.39527393,0.00018876,2]
[408077923,1773114646778,-5000.0,0.00018876,2]
[408077924,1773114646788,-5000.0,0.00018876,2]
[408077925,1773114646797,-3634.78,0.00018891,2]
[408077926,1773114646807,-1000.0,0.000189,2]
[408077927,1773114646815,-151.0,0.00018924,2]
[408077928,1773114646825,-151.0,0.00018979,2]
[408077929,1773114646834,-1588.85,0.00018981,2]
[408077930,1773114646843,-609.73090971,0.00018997,2]
[408077931,1773114646853,-500.0,0.00019,7]
[408077932,1773114646862,-500.0,0.00019,7]
[408077933,1773114646871,-500.0,0.00019,7]
[408077934,1773114646881,-500.0,0.00019,7]
[408077935,1773114646890,-500.0,0.00019,7]
[408077936,1773114646900,-500.0,0.00019,7]
[408077937,1773114646909,-500.0,0.00019,7]
[408077938,1773114646919,-500.0,0.00019,7]
[408077939,1773114646929,-500.0,0.00019,7]
[408077940,1773114646938,-500.0,0.00019,7]
[408077941,1773114646948,-526.12,0.00019,7]
[408077942,1773114646958,-500.0,0.00019,7]
[408077943,1773114646967,-500.0,0.00019,7]
[408077944,1773114646977,-500.0,0.00019,7]
[408077945,1773114646986,-356.06,0.00019,7]
[408077946,1773114646997,-160.34163372,0.00019014,2]
[408077947,1773114647006,-151.0,0.00019034,2]
[408077948,1773114647015,-5141.15420675,0.00019057,2]
[408077949,1773114647025,-1759.89391002,0.00019057,2]
[408077950,1773114647034,-166.66,0.0001907,2]
[408077951,1773114647044,-250.0,0.00019074,2]
[408077952,1773114647053,-288.79400444,0.00019089,2]
[408077953,1773114647062,-160.34163372,0.00019096,2]
[408077954,1773114647071,-210.0,0.00019152,2]
[408077955,1773114647080,-246.90447543,0.00019174,2]
[408077956,1773114647090,-150.0,0.00019174,2]
[408077957,1773114647099,-626.93,0.00019178,2]
[408077958,1773114647108,-787.0,0.00019178,2]
[408077959,1773114647379,-1000.0,0.00019178,2]
[408077960,1773114647389,-160.34163372,0.00019205,2]
[408077961,1773114647398,-1588.85,0.00019255,2]
[408077962,1773114647407,-609.73090971,0.00019289,2]
[408077963,1773114647416,-210.0,0.00019289,2]
[408077964,1773114647425,-500.0,0.00019313,2]
[408077965,1773114647434,-2009.56284127,0.00019313,2]
[408077966,1773114647443,-160.34163372,0.00019315,2]
[408077967,1773114647453,-5141.15420675,0.00019328,2]
[408077968,1773114647462,-504.0,0.00019333,4]
[408077969,1773114647471,-187.0,0.00019354,2]
[408077970,1773114647480,-2834.0,0.0001936,2]
[408077971,1773114647489,-595.0,0.00019369,2]
[408077972,1773114647498,-294.0,0.00019369,2]
[408077973,1773114647509,-159.0,0.00019377,2]
[408077974,1773114647522,-1503.72110459,0.00019417,2]
[408077975,1773114647531,-1000.0,0.00019417,2]
[408077976,1773114647541,-181.08010149,0.00019417,2]
[408077977,1773114647551,-771.01748645,0.00019417,2]
[408077978,1773114647562,-200.0,0.00019417,2]
[408077979,1773114647572,-693.3919763,0.00019417,2]
[408077980,1773114647584,-272.62944185,0.00019417,2]
[408077981,1773114647593,-160.34163372,0.00019425,2]
[408077982,1773114647602,-210.0,0.00019426,2]
[408077983,1773114647611,-600.0,0.00019452,7]
[408077984,1773114647621,-500.0,0.00019452,7]
[408077985,1773114647631,-787.0,0.00019452,2]
[408077986,1773114647641,-1000.0,0.00019452,2]
[408077987,1773114647652,-187.0,0.00019467,2]
[408077988,1773114647661,-1399.52242933,0.00019472,4]
[408077989,1773114647670,-500.0,0.00019473,2]
[408077990,1773114647680,-739.0,0.00019486,2]
[408077991,1773114647690,-500.0,0.00019503,2]
[408077992,1773114647700,-204.83861542,0.00019503,2]
[408077993,1773114647709,-500.0,0.00019503,2]
[408077994,1773114647718,-500.0,0.00019503,2]
[408077995,1773114647727,-150.0,0.00019503,2]
[408077996,1773114647737,-150.51586392,0.00019503,2]
[408077997,1773114647746,-150.0,0.00019503,2]
[408077998,1773114647756,-151.19383815,0.00019503,2]
[408077999,1773114647766,-150.0,0.00019503,2]
[408078000,1773114647775,-500.0,0.00019503,2]
[408078001,1773114647784,-150.0,0.00019503,2]
[408078002,1773114647793,-168.0,0.00019504,2]
[408078003,1773114647802,-246.90447543,0.00019523,2]
[408078004,1773114647812,-1588.85,0.00019529,2]
[408078005,1773114647821,-160.34163372,0.00019534,2]
[408078006,1773114647830,-500.0,0.00019558,2]
[408078007,1773114647839,-513.38232266,0.00019558,2]
[408078008,1773114647848,-500.0,0.00019558,2]
[408078009,1773114647857,-231.17936295,0.00019558,2]
[408078010,1773114647866,-150.0,0.00019558,2]
[408078011,1773114647875,-159.60904999,0.00019558,2]
[408078012,1773114647885,-508.22060755,0.00019558,2]
[408078013,1773114647894,-150.54749687,0.00019558,2]
[408078014,1773114647903,-210.0,0.00019563,2]
[408078015,1773114647913,-609.73090971,0.0001958,2]
[408078016,1773114647922,-5141.15420675,0.000196,2]
[408078017,1773114647932,-879.19108021,0.000196,2]
[408078018,1773114647942,-1100.0,0.000196,7]
[408078019,1773114647951,-160.61378813,0.00019613,2]
[408078020,1773114647960,-450.0,0.00019613,2]
[408078021,1773114647969,-150.0,0.00019613,2]
[408078022,1773114647978,-160.34163372,0.00019616,2]
[408078023,1773114647988,-166.66,0.00019626,2]
[408078024,1773114647997,-357.30831779,0.00019634,2]
[408078025,1773114648006,-25059.83,0.00019654,8]
[408078026,1773114648015,-150.11,0.00019654,8]
[408078027,1773114648025,-210.0,0.000197,2]
[408078028,1773114648035,-400.0,0.000197,2]
[408078029,1773114648044,-1400.0,0.000197,7]
[408078030,1773114648054,-787.0,0.00019726,2]
[408078031,1773114648062,-160.34163372,0.00019726,2]
[408078032,1773114648072,-1000.0,0.00019726,2]
[408078033,1773114648081,-152.0,0.00019744,4]
[408078034,1773114648090,-364.83297,0.0001977,2]
[408078035,1773114648099,-364.83297,0.0001977,2]
[408078036,1773114648109,-364.83297,0.0001977,2]
[408078037,1773114648118,-200.0,0.000198,7]
[408078038,1773114648127,-1588.85,0.00019803,2]
[408078039,1773114648136,-500.0,0.00019806,2]
[408078040,1773114648145,-515.97367444,0.00019806,2]
[408078041,1773114648154,-500.0,0.00019806,2]
[408078042,1773114648163,-1210.78,0.00019806,2]
[408078043,1773114648173,-500.0,0.00019806,9]
[408078044,1773114648182,-500.0,0.00019806,2]
[408078045,1773114648191,-500.0,0.00019812,2]
[408078046,1773114648199,-500.0,0.00019812,2]
[408078047,1773114648209,-500.0,0.00019812,2]
[408078048,1773114648218,-200.0,0.00019825,2]
[408078049,1773114648227,-500.0,0.00019827,2]
[408078050,1773114648236,-500.0,0.00019827,2]
[408078051,1773114648245,-500.0,0.00019827,2]
[408078052,1773114648254,-500.0,0.00019827,2]
[408078053,1773114648263,-500.0,0.00019827,2]
[408078054,1773114648273,-500.0,0.00019827,2]
[408078055,1773114648282,-500.0,0.00019827,2]
[408078056,1773114648291,-502.14275911,0.00019827,2]
[408078057,1773114648301,-500.0,0.00019827,2]
[408078058,1773114648310,-160.34163372,0.00019836,2]
[408078059,1773114648319,-150.0,0.00019836,4]
[408078060,1773114648328,-150.0,0.00019836,4]
[408078061,1773114648337,-150.0,0.00019836,4]
[408078062,1773114648347,-209.37582631,0.00019836,4]
[408078063,1773114648357,-239.07783332,0.00019836,4]
[408078064,1773114648366,-150.0,0.00019836,4]
[408078065,1773114648376,-150.0,0.00019836,4]
[408078066,1773114648385,-150.0,0.00019836,4]
[408078067,1773114648395,-150.0,0.00019836,4]
[408078068,1773114648404,-150.0,0.00019836,4]
[408078069,1773114648414,-150.0,0.00019836,4]
[408078070,1773114648424,-150.0,0.00019836,4]
[408078071,1773114648433,-150.0,0.00019836,4]
[408078072,1773114648443,-150.0,0.00019836,4]
[408078073,1773114648452,-150.0,0.00019836,4]
[408078074,1773114648462,-2410.0,0.00019836,2]
[408078075,1773114648471,-150.0,0.00019839,4]
[408078076,1773114648481,-150.0,0.00019843,4]
[408078077,1773114648491,-150.0,0.00019844,4]
[408078078,1773114648500,-150.0,0.00019845,4]
[408078079,1773114648514,-150.0,0.00019846,4]
[408078080,1773114648525,-150.0,0.00019847,4]
[408078081,1773114648534,-150.0,0.00019851,4]
[408078082,1773114648543,-150.0,0.00019851,4]
[408078083,1773114648554,-150.0,0.00019852,4]
[408078084,1773114648563,-150.0,0.00019855,4]
[408078085,1773114648573,-150.0,0.00019855,4]
[408078086,1773114648584,-150.0,0.00019856,4]
[408078087,1773114648593,-150.0,0.00019856,4]
[408078088,1773114648603,-3898.7763579,0.00019857,2]
[408078089,1773114648614,-96655.3951173,0.00019857,2]
[408078090,1773114648623,-866.6438552,0.00019857,2]
[408078091,1773114648632,-2682.8466683,0.00019857,2]
[408078092,1773114648648,-5144.8815106,0.00019857,2]
[408078093,1773114648668,-2131.7687067,0.00019857,2]
[408078094,1773114648687,-151.0,0.00019857,2]
[408078095,1773114648707,-151.0,0.00019857,2]
[408078096,1773114648725,-75210.2135411,0.00019857,2]
[408078097,1773114648741,-151.0,0.00019857,2]
[408078098,1773114648759,-151.0,0.00019857,2]
[408078099,1773114648780,-151.0,0.00019857,2]
[408078100,1773114648798,-151.0,0.00019857,2]
[408078101,1773114648817,-151.0,0.00019857,2]
[408078102,1773114648834,-151.0,0.00019857,2]
[408078103,1773114648852,-159.114405,0.00019857,2]
[408078104,1773114648866,-162.949211,0.00019857,2]
[408078105,1773114648885,-184.906114,0.00019857,2]
[408078106,1773114648898,-184.906114,0.00019857,2]
[408078107,1773114648916,-151.0,0.00019857,2]
[408078108,1773114648929,-184.906114,0.00019857,2]
[408078109,1773114648944,-151.0,0.00019857,2]
[408078110,1773114648958,-184.906114,0.00019857,2]
[408078111,1773114648973,-151.0,0.00019857,2]
[408078112,1773114648995,-186.493858,0.00019857,2]
[408078113,1773114649009,-186.493858,0.00019857,2]
[408078114,1773114649024,-186.493858,0.00019857,2]
[408078115,1773114649038,-186.493858,0.00019857,2]
[408078116,1773114649053,-522.056443,0.00019857,2]
[408078117,1773114649067,-522.056443,0.00019857,2]
[408078118,1773114649082,-151.0,0.00019857,2]
[408078119,1773114649096,-522.056443,0.00019857,2]
[408078120,1773114649110,-522.056443,0.00019857,2]
[408078121,1773114649124,-151.0,0.00019857,2]
[408078122,1773114649139,-151.0,0.00019857,2]
[408078123,1773114649154,-151.0,0.00019857,2]
[408078124,1773114649168,-169.36279,0.00019857,2]
[408078125,1773114649183,-318.753976,0.00019857,2]
[408078126,1773114649199,-318.753976,0.00019857,2]
[408078127,1773114649213,-318.753976,0.00019857,2]
[408078128,1773114649228,-318.753976,0.00019857,2]
[408078129,1773114649242,-151.0,0.00019857,2]
[408078130,1773114649257,-253.548355,0.00019857,2]
[408078131,1773114649272,-253.548355,0.00019857,2]
[408078132,1773114649287,-253.548355,0.00019857,2]
[408078133,1773114649303,-253.548355,0.00019857,2]
[408078134,1773114649317,-157.696963,0.00019857,2]
[408078135,1773114649332,-151.0,0.00019857,2]
[408078136,1773114649347,-165.133345,0.00019857,2]
[408078137,1773114649362,-164.746908,0.00019857,2]
[408078138,1773114649376,-178.129445,0.00019857,2]
[408078139,1773114649391,-151.653669,0.00019857,2]
[408078140,1773114649407,-151.0,0.00019857,2]
[408078141,1773114649421,-151.0,0.00019857,2]
[408078142,1773114649436,-151.0,0.00019857,2]
[408078143,1773114649451,-151.0,0.00019857,2]
[408078144,1773114649465,-151.0,0.00019857,2]
[408078145,1773114649479,-151.0,0.00019857,2]
[408078146,1773114649495,-151.0,0.00019857,2]
[408078147,1773114649513,-159.195226,0.00019857,2]
[408078148,1773114649528,-151.0,0.00019857,2]
[408078149,1773114649545,-151.0,0.00019857,2]
[408078150,1773114649560,-151.0,0.00019857,2]
[408078151,1773114649575,-151.0,0.00019857,2]
[408078152,1773114649592,-151.0,0.00019857,2]
[408078153,1773114649607,-151.0,0.00019857,2]
[408078154,1773114649623,-151.0,0.00019857,2]
[408078155,1773114649638,-275.760757,0.00019857,2]
[408078156,1773114649654,-151.0,0.00019857,2]
[408078157,1773114649670,-238.811072,0.00019857,2]
[408078158,1773114649686,-1182.903312,0.00019857,2]
[408078159,1773114649701,-954.244289,0.00019857,2]
[408078160,1773114649715,-1182.903312,0.00019857,2]
[408078161,1773114649731,-1861.547374,0.00019857,2]
[408078162,1773114649745,-954.244289,0.00019857,2]
[408078163,1773114649761,-1182.903312,0.00019857,2]
[408078164,1773114649775,-1861.547374,0.00019857,2]
[408078165,1773114649790,-954.244289,0.00019857,2]
[408078166,1773114649809,-1182.903312,0.00019857,2]
[408078167,1773114649824,-379.587522,0.00019857,2]
[408078168,1773114649840,-954.244289,0.00019857,2]
[408078169,1773114649856,-151.0,0.00019857,2]
[408078170,1773114649872,-379.587522,0.00019857,2]
[408078171,1773114649887,-151.0,0.00019857,2]
[408078172,1773114649904,-379.587522,0.00019857,2]
[408078173,1773114649920,-151.0,0.00019857,2]
[408078174,1773114649935,-230.880756,0.00019857,2]
[408078175,1773114649950,-379.587522,0.00019857,2]
[408078176,1773114649965,-1861.547374,0.00019857,2]
[408078177,1773114649981,-151.0,0.00019857,2]
[408078178,1773114649995,-151.0,0.00019857,2]
[408078179,1773114650011,-1861.547374,0.00019857,2]
[408078180,1773114650027,-151.0,0.00019857,2]
[408078181,1773114650043,-207.708668,0.00019857,2]
[408078182,1773114650058,-151.0,0.00019857,2]
[408078183,1773114650073,-151.0,0.00019857,2]
[408078184,1773114650088,-154.532111,0.00019857,2]
[408078185,1773114650103,-183.198943,0.00019857,2]
[408078186,1773114650118,-151.0,0.00019857,2]
[408078187,1773114650135,-151.0,0.00019857,2]
[408078188,1773114650151,-151.0,0.00019857,2]
[408078189,1773114650166,-151.0,0.00019857,2]
[408078190,1773114650181,-151.0,0.00019857,2]
[408078191,1773114650197,-151.677904,0.00019857,2]
[408078192,1773114650212,-168.43846,0.00019857,2]
[408078193,1773114650227,-151.0,0.00019857,2]
[408078194,1773114650242,-168.43846,0.00019857,2]
[408078195,1773114650257,-151.0,0.00019857,2]
[408078196,1773114650273,-168.43846,0.00019857,2]
[408078197,1773114650289,-168.43846,0.00019857,2]
[408078198,1773114650304,-151.0,0.00019857,2]
[408078199,1773114650320,-151.0,0.00019857,2]
[408078200,1773114650336,-151.0,0.00019857,2]
[408078201,1773114650353,-215.770622,0.00019857,2]
[408078202,1773114650369,-151.0,0.00019857,2]
[408078203,1773114650385,-151.0,0.00019857,2]
[408078204,1773114650401,-151.0,0.00019857,2]
[408078205,1773114650416,-151.0,0.00019857,2]
[408078206,1773114650432,-1006.974846,0.00019857,2]
[408078207,1773114650448,-1006.974846,0.00019857,2]
[408078208,1773114650463,-736.247045,0.00019857,2]
[408078209,1773114650478,-1006.974846,0.00019857,2]
[408078210,1773114650494,-736.247045,0.00019857,2]
[408078211,1773114650515,-1006.974846,0.00019857,2]
[408078212,1773114650531,-163.106316,0.00019857,2]
[408078213,1773114650548,-736.247045,0.00019857,2]
[408078214,1773114650563,-736.247045,0.00019857,2]
[408078215,1773114650578,-228.371361,0.00019857,2]
[408078216,1773114650594,-151.0,0.00019857,2]
[408078217,1773114650610,-228.371361,0.00019857,2]
[408078218,1773114650625,-704.464347,0.00019857,2]
[408078219,1773114650639,-151.0,0.00019857,2]
[408078220,1773114650655,-228.371361,0.00019857,2]
[408078221,1773114650671,-704.464347,0.00019857,2]
[408078222,1773114650685,-151.0,0.00019857,2]
[408078223,1773114650694,-228.371361,0.00019857,2]
[408078224,1773114651049,-704.464347,0.00019857,2]
[408078225,1773114651074,-704.464347,0.00019857,2]
[408078226,1773114651084,-995.518115,0.00019857,2]
[408078227,1773114651094,-995.518115,0.00019857,2]
[408078228,1773114651103,-995.518115,0.00019857,2]
[408078229,1773114651113,-995.518115,0.00019857,2]
[408078230,1773114651122,-278.687678,0.00019857,2]
[408078231,1773114651131,-278.687678,0.00019857,2]
[408078232,1773114651141,-278.687678,0.00019857,2]
[408078233,1773114651151,-278.687678,0.00019857,2]
[408078234,1773114651160,-151.0,0.00019857,2]
[408078235,1773114651170,-175.628092,0.00019857,2]
[408078236,1773114651179,-151.0,0.00019857,2]
[408078237,1773114651189,-151.0,0.00019857,2]
[408078238,1773114651198,-151.0,0.00019857,2]
[408078239,1773114651207,-151.0,0.00019857,2]
[408078240,1773114651216,-152.757277,0.00019857,2]
[408078241,1773114651226,-151.0,0.00019857,2]
[408078242,1773114651235,-155.903725,0.00019857,2]
[408078243,1773114651244,-151.0,0.00019857,2]
[408078244,1773114651254,-151.0,0.00019857,2]
[408078245,1773114651263,-151.0,0.00019857,2]
[408078246,1773114651273,-151.0,0.00019857,2]
[408078247,1773114651281,-151.0,0.00019857,2]
[408078248,1773114651291,-151.0,0.00019857,2]
[408078249,1773114651300,-199.207104,0.00019857,2]
[408078250,1773114651309,-151.0,0.00019857,2]
[408078251,1773114651318,-151.0,0.00019857,2]
[408078252,1773114651326,-924.068344,0.00019857,2]
[408078253,1773114651335,-924.068344,0.00019857,2]
[408078254,1773114651345,-637.934246,0.00019857,2]
[408078255,1773114651354,-924.068344,0.00019857,2]
[408078256,1773114651363,-637.934246,0.00019857,2]
[408078257,1773114651373,-924.068344,0.00019857,2]
[408078258,1773114651382,-637.934246,0.00019857,2]
[408078259,1773114651391,-982.349554,0.00019857,2]
[408078260,1773114651400,-637.934246,0.00019857,2]
[408078261,1773114651410,-982.349554,0.00019857,2]
[408078262,1773114651419,-4350.510175,0.00019857,2]
[408078263,1773114651429,-982.349554,0.00019857,2]
[408078264,1773114651438,-4350.510175,0.00019857,2]
[408078265,1773114651448,-982.349554,0.00019857,2]
[408078266,1773114651457,-4350.510175,0.00019857,2]
[408078267,1773114651466,-647.376851,0.00019857,2]
[408078268,1773114651476,-4350.510175,0.00019857,2]
[408078269,1773114651485,-151.0,0.00019857,2]
[408078270,1773114651494,-151.0,0.00019857,2]
[408078271,1773114651508,-647.376851,0.00019857,2]
[408078272,1773114651519,-647.376851,0.00019857,2]
[408078273,1773114651528,-151.0,0.00019857,2]
[408078274,1773114651537,-647.376851,0.00019857,2]
[408078275,1773114651549,-1308.367659,0.00019857,2]
[408078276,1773114651558,-1308.367659,0.00019857,2]
[408078277,1773114651567,-1308.367659,0.00019857,2]
[408078278,1773114651578,-1308.367659,0.00019857,2]
[408078279,1773114651587,-597.550008,0.00019857,2]
[408078280,1773114651596,-151.0,0.00019857,2]
[408078281,1773114651606,-1104.868282,0.00019857,2]
[408078282,1773114651615,-151.0,0.00019857,2]